{"text_format":"1","workbook":"xlsx","n_sheets":4,"sheets":["Žadatel"," Roční projekt","Harm_Rocni","DATA"],"not_rendered":{"charts":0,"images":2,"macros":1,"external_links":0,"defined_names":3,"comments":2,"pivot_tables":0},"unopened":[],"bounds":{"document_bytes":16777216,"sheet_cells":100000,"rows_first":2000,"rows_last":500,"rows_between":2000,"halvings":0,"cell_chars":16384,"cell_head_chars":4096},"cells_cut":0,"cells_raw":0,"read":"whole","date_system":"1900"}

{"sheet":"Žadatel","index":0,"n_rows":27,"n_cols":18,"rows_kept":27,"cut":false,"hidden":false,"merged":[[13,0,13,1],[1,3,1,11],[4,3,4,11],[5,3,5,11],[6,3,6,11],[7,3,7,11],[9,3,9,11],[10,3,10,11],[11,3,11,11],[12,3,12,11],[13,3,13,11],[27,6,28,8],[27,9,28,11],[17,3,17,4],[18,3,18,4],[19,3,19,4],[24,3,24,4],[23,3,23,4],[22,3,22,4],[21,3,21,4],[20,3,20,4]]}
[null,null,null,null,null,null,"POMOZTE DĚTEM"]
["Název organizace"]
["Aktivity organizace"]
["Hlavní aktivity organizace"]
[null,null,"a,"]
[null,null,"b,"]
[null,null,"c,"]
[null,null,"d,",null,null,null,null,null,null,null,null,null,null,null,null,null,null,"1.       Děti se smyslovým postižením (zrakové, sluchové, hluchoslepota)"]
["Registrované služby dle z.108/2006 Sb. o sociálních službách",null,null,null,null,null,null,null,null,null,null,null,null,null,null,null,null,"2.       Děti s tělesným postižením (DMO, omezení hybnosti, vrozené poruchy a onemocnění, úrazy)"]
[null,null,"a,",null,null,null,null,null,null,null,null,null,null,null,null,null,null,"3.       Děti s poruchami psychického vývoje (specifické poruchy řeči a jazyka, školních dovedností, chování, ADHD, pervazivní vývojové poruchy (autismus))"]
[null,null,"b,",null,null,null,null,null,null,null,null,null,null,null,null,null,null,"4.       Děti s mentálním postižením"]
[null,null,"c,",null,null,null,null,null,null,null,null,null,null,null,null,null,null,"5.       Děti s kombinovaným postižením"]
[null,null,"d,",null,null,null,null,null,null,null,null,null,null,null,null,null,null,"6.       Děti dlouhodobě nemocné"]
["Pověření dle zák. 359/99 Sb.k sociálně právní ochraně dětí",null,null,null,null,null,null,null,null,null,null,null,null,null,null,null,null,"7.       Děti s jiným specifickým zdravotním znevýhodněním"]
[null,null,null,null,null,null,null,null,null,null,null,null,null,null,null,"ANO",null,"8.       Děti žijící mimo vlastní rodinu (pěstounská péče, adopce, děti z dětských domovů)"]
["Uveďte kolikrát jste v minulosti žádali o finanční podporu v projektu Pomozte dětem a kolikrát jste byli podpořeni a v jaké výši.",null,null,null,null,null,null,null,null,null,null,null,null,null,null,"NE"]
[null,null,null,null,null,null,null,null,null,null,null,null,null,null,null,"NEVÍM"]
[]
[null,null,"Žádáno","Podpora v Kč"]
[null,"19. ročník"]
[null,"20. ročník"]
[null,"21. ročník"]
[null,"22. ročník"]
[null,"23. ročník"]
[]
[]
[null,"celkově žádáno:",null,null,"krát",null,"celkově podpořeno:",null,null,{"$f":"SUM(D20:E24)","v":0}]

{"sheet":" Roční projekt","index":1,"n_rows":101,"n_cols":18,"rows_kept":101,"cut":false,"hidden":false,"merged":[[3,1,3,14],[97,0,97,5],[97,6,97,7],[97,8,97,14],[98,0,98,14],[99,0,99,14],[100,0,100,14],[101,0,101,14],[89,0,89,14],[90,0,90,14],[91,0,91,14],[92,0,92,4],[92,5,92,6],[92,7,92,10],[92,11,92,14],[93,0,93,4],[93,5,93,6],[93,7,93,10],[93,11,93,14],[94,0,94,4],[94,5,94,6],[94,7,94,10],[94,11,94,14],[95,0,95,14],[96,0,96,14],[78,0,78,4],[78,5,78,6],[78,7,78,10],[78,11,78,14],[79,0,79,14],[80,0,80,14],[81,0,81,5],[81,6,81,7],[81,8,81,14],[82,0,82,14],[83,0,83,14],[84,0,84,14],[85,0,85,14],[86,0,86,14],[87,0,87,11],[87,12,87,14],[88,0,88,14],[66,0,66,14],[67,0,67,14],[68,0,68,14],[69,0,69,14],[70,0,70,14],[71,0,71,11],[71,12,71,14],[72,0,72,14],[73,0,73,14],[74,0,74,14],[75,0,75,14],[76,0,76,4],[76,5,76,6],[76,7,76,10],[76,11,76,14],[77,0,77,4],[77,5,77,6],[77,7,77,10],[77,11,77,14],[0,0,0,14],[4,1,4,14],[5,1,5,14],[6,1,7,14],[8,1,8,12],[8,13,8,14],[10,1,10,6],[33,8,33,14],[38,0,38,14],[22,0,22,14],[28,0,28,4],[23,0,23,11],[23,12,23,14],[34,0,34,14],[29,0,29,4],[29,5,29,6],[9,1,9,14],[11,1,11,6],[13,1,13,14],[14,1,14,14],[15,1,15,7],[15,8,15,14],[28,5,28,6],[28,7,28,10],[63,0,63,14],[64,0,64,14],[65,0,65,5],[65,6,65,7],[65,8,65,14],[16,8,16,14],[16,1,16,7],[17,1,17,7],[35,0,35,14],[30,0,30,4],[30,5,30,6],[24,0,24,14],[25,0,25,14],[26,0,26,14],[17,8,17,14],[18,1,18,7],[18,8,18,14],[27,0,27,14],[28,11,28,14],[19,1,19,14],[20,1,20,14],[29,7,29,10],[29,11,29,14],[30,7,30,10],[49,8,49,14],[47,0,47,14],[48,0,48,14],[49,0,49,5],[49,6,49,7],[50,0,50,14],[30,11,30,14],[31,0,31,14],[32,0,32,14],[33,0,33,5],[33,6,33,7],[45,5,45,6],[45,7,45,10],[45,11,45,14],[39,0,39,11],[39,12,39,14],[45,0,45,4],[46,0,46,4],[46,5,46,6],[46,7,46,10],[46,11,46,14],[36,0,36,14],[37,0,37,14],[40,0,40,14],[41,0,41,14],[42,0,42,14],[43,0,43,14],[44,0,44,4],[44,5,44,6],[44,7,44,10],[44,11,44,14],[51,0,51,14],[52,0,52,14],[62,0,62,4],[62,5,62,6],[62,7,62,10],[62,11,62,14],[56,0,56,14],[57,0,57,14],[58,0,58,14],[59,0,59,14],[60,0,60,4],[60,5,60,6],[60,7,60,10],[60,11,60,14],[61,0,61,4],[61,5,61,6],[61,7,61,10],[61,11,61,14],[53,0,53,14],[54,0,54,14],[55,0,55,11],[55,12,55,14]]}
["POMOZTE DĚTEM"]
[null,null,null,null,null,null,null,null,null,null,null,null,null,"Roční projekt"]
["Projektový záměr"]
["1.","Název projektu"]
[]
["2.","Odůvodnění potřebnosti projektu ve vazbě na region \n(Konkrétně vydefinujte oblast, kterou chcete projektem řešit. Uveďte podkladová data, statistiky, analýzy, vlastní výzkumná šetření aj.)",null,null,null,null,null,null,null,null,null,null,null,null,null,null,"1.       Děti se smyslovým postižením (zrakové, sluchové, hluchoslepota)","1.       Sociální poradenství"]
[null,null,null,null,null,null,null,null,null,null,null,null,null,null,null,null,"2.       Děti s tělesným postižením (DMO, omezení hybnosti, vrozené poruchy a onemocnění, úrazy)","2.       Osobní asistence"]
[null,null,null,null,null,null,null,null,null,null,null,null,null,null,null,null,"3.       Děti s poruchami psychického vývoje (specifické poruchy řeči a jazyka, školních dovedností, chování, ADHD, pervazivní vývojové poruchy (autismus))","3.       Služby rané péče"]
["3. ","Charakterizujte a konkretizujte specifika vybraných dětí, na které projekt cílí.",null,null,null,null,null,null,null,null,null,null,null,null,null,null,"4.       Děti s mentálním postižením","4.       Odlehčovací služby"]
[null,null,null,null,null,null,null,null,null,null,null,null,null,null,null,null,"5.       Děti s kombinovaným postižením","5.       Paliativní péče"]
["4. ","Počet dětí zahrnutých v projektu ",null,null,null,null,null,"Věk","0-5 let","6-10 let","11-14 let","15-18 let","Celkem",null,null,null,"6.       Děti dlouhodobě nemocné","6.       Azylové domy"]
[null,null,null,null,null,null,null,"Počet",null,null,null,null,{"$f":"SUM(I12:L12)","v":0},null,null,null,"7.       Děti s jiným specifickým zdravotním znevýhodněním","7.       Telefonická krizová intervence"]
["5.","Jaké kvalitativní změny u dětí jsou v souvislosti s realizací projektu očekávány?"]
[]
["6.","Slabé a silné stránky projektu - SWOT analýza"]
[null,"Silné stránky projektu",null,null,null,null,null,null,"Slabé stránky projektu"]
["Interní prostředí"]
[null,"Příležitosti projektu",null,null,null,null,null,null,"Hrozby projektu"]
["Externí prostředí"]
["7.","Jak bude zajištěno pokračování projektu po ukončení financování z prostředků Pomozte dětem?"]
[]
["Popis aktivit projektu"]
["Aktivita č.1"]
["Název aktivity"]
[]
["Popis aktivity (Podrobný popis aktivity)"]
[]
["Výstupy aktivity a způsob ověření výstupů aktivity",null,null,null,null,null,null,null,null,null,null,null,null,null,null,null,"9.       Děti žijící v sociálně slabých rodinách","9.       Nízkoprahová zařízení pro děti a mládež"]
["Výstup aktivity",null,null,null,null,"Cílová hodnota výstupu na konci projektu včetně jednotky",null,"Popis cílové hodnoty",null,null,null,"Způsob ověření výstupů aktivity"]
[]
[]
["Sledování kvalitativního dopadu aktivity č.1 na cílovou skupinu"]
[]
["Finanční spoluúčast cílové skupiny na aktivitě č.1"]
["Specifikujte, na které aktivity a kolik si klienti připlácí"]
[]
["Jak aktivizujete cílovou skupinu v rámci této aktivity?"]
[]
["Aktivita č.2"]
["Název aktivity"]
[]
["Popis aktivity (Podrobný popis aktivity)"]
[]
["Výstupy aktivity a způsob ověření výstupů aktivity"]
["Výstup aktivity",null,null,null,null,"Cílová hodnota výstupu na konci projektu včetně jednotky",null,"Popis cílové hodnoty",null,null,null,"Způsob ověření výstupů aktivity"]
[]
[]
["Sledování kvalitativního dopadu aktivity č.2 na cílovou skupinu"]
[]
["Finanční spoluúčast cílové skupiny na aktivitě č.2"]
["Specifikujte, na které aktivity a kolik si klienti připlácí"]
[]
["Jak aktivizujete cílovou skupinu v rámci této aktivity?"]
[]
["Aktivita č.3"]
["Název aktivity"]
[]
["Popis aktivity (Podrobný popis aktivity)"]
[]
["Výstupy aktivity a způsob ověření výstupů aktivity"]
["Výstup aktivity",null,null,null,null,"Cílová hodnota výstupu na konci projektu včetně jednotky",null,"Popis cílové hodnoty",null,null,null,"Způsob ověření výstupů aktivity"]
[]
[]
["Sledování kvalitativního dopadu aktivity č.3 na cílovou skupinu"]
[]
["Finanční spoluúčast cílové skupiny na aktivitě č.3"]
["Specifikujte, na které aktivity a kolik si klienti připlácí"]
[]
["Jak aktivizujete cílovou skupinu v rámci této aktivity?"]
[]
["Aktivita č.4"]
["Název aktivity"]
[]
["Popis aktivity (Podrobný popis aktivity)"]
[]
["Výstupy aktivity a způsob ověření výstupů aktivity"]
["Výstup aktivity",null,null,null,null,"Cílová hodnota výstupu na konci projektu včetně jednotky",null,"Popis cílové hodnoty",null,null,null,"Způsob ověření výstupů aktivity"]
[]
[]
["Sledování kvalitativního dopadu aktivity č.4 na cílovou skupinu"]
[]
["Finanční spoluúčast cílové skupiny na aktivitě č.4"]
["Specifikujte, na které aktivity a kolik si klienti připlácí"]
[]
["Jak aktivizujete cílovou skupinu v rámci této aktivity?"]
[]
["Aktivita č.5"]
["Název aktivity"]
[]
["Popis aktivity (Podrobný popis aktivity)"]
[]
["Výstupy aktivity a způsob ověření výstupů aktivity"]
["Výstup aktivity",null,null,null,null,"Cílová hodnota výstupu na konci projektu včetně jednotky",null,"Popis cílové hodnoty",null,null,null,"Způsob ověření výstupů aktivity"]
[]
[]
["Sledování kvalitativního dopadu aktivity č.5 na cílovou skupinu"]
[]
["Finanční spoluúčast cílové skupiny na aktivitě č.5"]
["Specifikujte, na které aktivity a kolik si klienti připlácí"]
[]
["Jak aktivizujete cílovou skupinu v rámci této aktivity?"]

{"sheet":"Harm_Rocni","index":2,"n_rows":14,"n_cols":14,"rows_kept":14,"cut":false,"hidden":false,"merged":[[0,0,0,17],[4,6,5,6],[4,7,5,9],[4,11,5,13],[13,0,13,17]]}
["Pomozte dětem"]
[null,null,null,null,null,null,null,null,null,null,"Roční projekt"]
["Název projektu:",null,{"$f":"' Roční projekt'!B5:O5","v":0}]
["Organizace:",null,{"$f":"Žadatel!D2","v":0}]
[null,null,null,null,null,null,"P","Příprava aktivity",null,null,"R","Realizace aktivity"]
["Harmonogram projektu",null,null,"Smazat"]
["Číslo aktivity","Název aktivity","2022-07-01","2022-08-01","2022-09-01","2022-10-01","2022-11-01","2022-12-01","2023-01-01","2023-02-01","2023-03-01","2023-04-01","2023-05-01","2023-06-01"]
[1]
[{"$f":"A8+1","v":2}]
[3]
[4]
[5]
[]
["Aktivity projektu zařaďte do harmonogramu projektu. Harmonogram musí obsahovat především dobu přípravy a trvání jednotlivých činností, které budou prováděny za účelem dosažení cíle projektu. Klikem na buňku se Vám nabídne možnost P - příprava aktivity nebo R - realizace aktivity. Pokud chcete vyplněné pole opravit/změnit použijte Delete. Jedná se roční projekt , harmonogram by proto měl být kontinuální, tzn. probíhat po celý rok)."]

{"sheet":"DATA","index":3,"n_rows":2,"n_cols":66,"rows_kept":2,"cut":false,"hidden":true,"merged":[]}
["Org_name","Org_type","Org_IC","Org_Bank","Org_register_date","Org_statutar","Org_Report","Org_activity_a","Org_activity_b","Org_activity_c","Org_activity_d","Org_acredit_activity_a","Org_acredit_activity_b","Org_acredit_activity_c","Org_acredit_activity_d","Org_social_protection","Org_asociation","Org_adr_street","Org_adr_house_number","Org_adr_PSC","Org_adr_city","Org_post_adr_street","Org_post_adr_house_number","Org_post_adr_PSC","Org_post_adr_city","Org_WWW","Org_employes","Ogr_voluntaries","Org_accounting","Typ","Rocni_name","Rocni_ID","Rocni_Total","Rocni_Requested","Rocni_Kontakt_name","Rocni_Kontakt_tel","Rocni_Kontakt_mail","Rocni_nuts","Rocni_obec","Rocni_doba","Rocni_oblast","Rocni_deti","Tem_name","Tem_ID","Tem_Total","Tem_Requested","Tem_Kontakt_name","Tem_Kontakt_tel","Tem_Kontakt_mail","Tem_nuts","Tem_obec","Tem_doba","Tem_oblast","Tem_deti","Ind_name","Ind_ID","Ind_Total","Ind_Requested","Ind_Kontakt_name","Ind_Kontakt_tel","Ind_Kontakt_mail","Ind_nuts","Ind_obec","Ind_doba","Ind_oblast","Ind_deti"]
[{"$f":"Žadatel!D2","v":0},{"$f":"Žadatel!#REF!","v":{"$error":"#REF!"}},{"$f":"Žadatel!#REF!","v":{"$error":"#REF!"}},null,{"$f":"Žadatel!#REF!","v":{"$error":"#REF!"}},{"$f":"Žadatel!#REF!","v":{"$error":"#REF!"}},{"$f":"Žadatel!#REF!","v":{"$error":"#REF!"}},{"$f":"Žadatel!D5","v":0},{"$f":"Žadatel!D6","v":0},{"$f":"Žadatel!D7","v":0},{"$f":"Žadatel!D8","v":0},{"$f":"Žadatel!D10","v":0},{"$f":"Žadatel!D11","v":0},{"$f":"Žadatel!D12","v":0},{"$f":"Žadatel!D13","v":0},{"$f":"Žadatel!#REF!","v":{"$error":"#REF!"}},null,{"$f":"Žadatel!#REF!","v":{"$error":"#REF!"}},{"$f":"Žadatel!#REF!","v":{"$error":"#REF!"}},{"$f":"Žadatel!#REF!","v":{"$error":"#REF!"}},{"$f":"Žadatel!#REF!","v":{"$error":"#REF!"}},{"$f":"Žadatel!#REF!","v":{"$error":"#REF!"}},{"$f":"Žadatel!#REF!","v":{"$error":"#REF!"}},{"$f":"Žadatel!#REF!","v":{"$error":"#REF!"}},{"$f":"Žadatel!#REF!","v":{"$error":"#REF!"}},{"$f":"Žadatel!#REF!","v":{"$error":"#REF!"}},{"$f":"Žadatel!#REF!+Žadatel!#REF!+Žadatel!#REF!","v":{"$error":"#REF!"}},{"$f":"Žadatel!#REF!","v":{"$error":"#REF!"}},null,null,{"$f":"' Roční projekt'!B5","v":0},{"$f":"' Roční projekt'!#REF!","v":{"$error":"#REF!"}},{"$f":"' Roční projekt'!#REF!","v":{"$error":"#REF!"}},{"$f":"' Roční projekt'!#REF!","v":{"$error":"#REF!"}},{"$f":"' Roční projekt'!#REF!","v":{"$error":"#REF!"}},{"$f":"' Roční projekt'!#REF!","v":{"$error":"#REF!"}},{"$f":"' Roční projekt'!#REF!","v":{"$error":"#REF!"}},{"$f":"' Roční projekt'!#REF!","v":{"$error":"#REF!"}},{"$f":"' Roční projekt'!#REF!","v":{"$error":"#REF!"}},{"$f":"' Roční projekt'!G6","v":0},{"$f":"' Roční projekt'!#REF!","v":{"$error":"#REF!"}},{"$f":"' Roční projekt'!#REF!","v":{"$error":"#REF!"}},{"$f":"' Roční projekt'!#REF!","v":{"$error":"#REF!"}},{"$f":"Žadatel!D27","v":0},{"$f":"Žadatel!J27","v":0},{"$f":"Žadatel!J28","v":0}]